[Event "Championnat du monde jeunes U10"]
[Date "2024.11.20"]
[White "Ling, Chenxuan"]
[Black "Mutyalapati, Modith Aaroh"]
[WhiteElo "1967"]
[BlackElo "1893"]
[Round "6.6"]
[Result "1-0"]
[TimeControl "5400+30"]

1. d4 {[%clk 1:30:40]} 1... Nf6 {[%clk 1:30:47]} 2. c4 {[%clk 1:31:04]} 2... e6
{[%clk 1:31:09]} 3. Nf3 {[%clk 1:31:21]} 3... d5 {[%clk 1:29:57]} 4. Nc3 {[%clk
1:31:24]} 4... Bb4 {[%clk 1:30:14]} 5. e3 {[%clk 1:31:14]} 5... O-O {[%clk
1:28:53]} 6. Bd3 {[%clk 1:31:36]} 6... c5 {[%clk 1:27:33]} 7. O-O {[%clk
1:31:10]} 7... Nc6 {[%clk 1:27:18]} 8. a3 {[%clk 1:27:21]} 8... Bxc3 {[%clk
1:27:39]} 9. bxc3 {[%clk 1:27:48]} 9... dxc4 {[%clk 1:27:58]} 10. Bxc4 {[%clk
1:28:12]} 10... Na5 {[%clk 1:28:20]} 11. Bd3 {[%clk 1:28:11]} 11... Qc7 {[%clk
1:27:44]} 12. e4 {[%clk 1:24:18]} 12... Rd8 {[%clk 1:15:24]} 13. Bg5 {[%clk
1:22:23]} 13... h6 {[%clk 1:12:07]} 14. Bxf6 {[%clk 1:20:20]} 14... gxf6 {[%clk
1:12:31]} 15. Qd2 {[%clk 1:10:36]} 15... Kh7 {[%clk 1:10:59]} 16. e5+ {[%clk
1:07:58]} 16... f5 {[%clk 1:10:51]} 17. Qf4 {[%clk 1:07:32]} 17... f6 {[%clk
0:50:38]} 18. g4 {[%clk 1:02:21]} 18... fxe5 {[%clk 0:50:42]} 19. Nxe5 {[%clk
1:02:43]} 19... Qg7 {[%clk 0:51:05]} 20. Kh1 {[%clk 1:02:57]} 20... Qg5 {[%clk
0:50:59]} 21. Qg3 {[%clk 0:59:58]} 21... Qf6 {[%clk 0:38:28]} 22. Rg1 {[%clk
0:55:55]} 22... Nc6 {[%clk 0:32:15]} 23. Rae1 {[%clk 0:52:08]} 23... Rg8 {[%clk
0:22:59]} 24. Nxc6 {[%clk 0:50:48]} 24... bxc6 {[%clk 0:23:24]} 25. Qd6 {[%clk
0:50:34]} 25... c4 {[%clk 0:21:20]} 26. Bxf5+ {[%clk 0:49:47]} 26... Kh8 {[%clk
0:21:15]} 27. Be4 {[%clk 0:50:11]} 27... Bb7 {[%clk 0:20:47]} 28. Re3 {[%clk
0:46:08]} 28... Rad8 {[%clk 0:20:49]} 29. Qg3 {[%clk 0:44:23]} 29... Rg7 {[%clk
0:19:31]} 30. Rf3 {[%clk 0:42:33]} 30... Qe7 {[%clk 0:19:17]} 31. Qf4 {[%clk
0:41:23]} 31... Qg5 {[%clk 0:19:20]} 32. Qxg5 {[%clk 0:41:38]} 32... hxg5 {[%clk
0:19:38]} 33. Rb1 {[%clk 0:41:56]} 33... Kg8 {[%clk 0:18:43]} 34. Kg2 {[%clk
0:41:27]} 34... Re8 {[%clk 0:19:00]} 35. Re3 {[%clk 0:41:38]} 35... Rc8 {[%clk
0:18:43]} 36. Bf3 {[%clk 0:41:57]} 36... Re8 {[%clk 0:17:47]} 37. Re5 {[%clk
0:42:18]} 37... Ree7 {[%clk 0:18:07]} 38. Rc5 {[%clk 0:42:31]} 38... Ref7 {[%clk
0:18:30]} 39. Be2 {[%clk 0:41:00]} 39... Rf4 {[%clk 0:18:54]} 40. f3 {[%clk
0:41:25]} 40... Rgf7 {[%clk 0:19:21]} 41. Bxc4 {[%clk 0:41:35]} 41... Kh7 {[%clk
0:19:39]} 42. Bxe6 {[%clk 0:42:01]} 42... Re7 {[%clk 0:20:06]} 43. Bf5+ {[%clk
0:42:17]} 43... Kh6 {[%clk 0:20:31]} 44. Re5 {[%clk 0:42:29]} 44... Rf7 {[%clk
0:20:24]} 45. Re6+ {[%clk 0:42:49]} 45... Kg7 {[%clk 0:20:48]} 46. Re4 {[%clk
0:42:49]} 1-0

[Variant "Standard"]
[Site "Europe Echecs"]

[Event "Championnat du monde jeunes U10"]
[Date "2024.11.20"]
[White "Zhauynbay, Alimzhan"]
[Black "Azimov, Yasin"]
[WhiteElo "1953"]
[BlackElo "1759"]
[Round "6.7"]
[Result "1/2-1/2"]
[TimeControl "5400+30"]

1. e4 {[%clk 1:30:55]} 1... c5 {[%clk 1:30:54]} 2. Nf3 {[%clk 1:31:21]} 2... e6
{[%clk 1:31:08]} 3. d4 {[%clk 1:31:48]} 3... cxd4 {[%clk 1:31:25]} 4. Nxd4
{[%clk 1:32:13]} 4... a6 {[%clk 1:31:43]} 5. Bd3 {[%clk 1:30:54]} 5... b5 {[%clk
1:31:03]} 6. O-O {[%clk 1:30:19]} 6... Bb7 {[%clk 1:29:20]} 7. Qe2 {[%clk
1:24:20]} 7... d6 {[%clk 1:28:23]} 8. a4 {[%clk 1:21:17]} 8... b4 {[%clk
1:24:38]} 9. Rd1 {[%clk 1:09:32]} 9... Nf6 {[%clk 1:20:59]} 10. c3 {[%clk
1:06:12]} 10... bxc3 {[%clk 1:18:12]} 11. Nxc3 {[%clk 1:05:53]} 11... Nbd7
{[%clk 1:16:46]} 12. a5 {[%clk 1:00:15]} 12... Be7 {[%clk 1:13:25]} 13. f4
{[%clk 0:58:32]} 13... Qc7 {[%clk 1:06:09]} 14. Bc2 {[%clk 0:53:44]} 14... O-O
{[%clk 1:02:12]} 15. g4 {[%clk 0:47:19]} 15... Nb8 {[%clk 0:44:18]} 16. g5
{[%clk 0:40:59]} 16... Nfd7 {[%clk 0:44:36]} 17. f5 {[%clk 0:37:14]} 17... Nc6
{[%clk 0:41:51]} 18. fxe6 {[%clk 0:30:00]} 18... Nxd4 {[%clk 0:42:08]} 19. exf7+
{[%clk 0:30:16]} 19... Rxf7 {[%clk 0:42:36]} 20. Rxd4 {[%clk 0:30:37]} 20... Kh8
{[%clk 0:32:59]} 21. Bb3 {[%clk 0:22:32]} 21... Rff8 {[%clk 0:33:08]} 22. Rd3
{[%clk 0:20:56]} 22... Nc5 {[%clk 0:26:53]} 23. Rh3 {[%clk 0:17:30]} 23... Nxb3
{[%clk 0:23:23]} 24. g6 {[%clk 0:17:18]} 24... h6 {[%clk 0:21:47]} 25. Bxh6
{[%clk 0:17:28]} 25... gxh6 {[%clk 0:17:06]} 26. Rxh6+ {[%clk 0:17:56]} 26...
Kg8 {[%clk 0:17:23]} 27. Rh8+ {[%clk 0:16:44]} 27... Kxh8 {[%clk 0:17:51]} 28.
Qh5+ {[%clk 0:17:04]} 28... Kg7 {[%clk 0:18:16]} 29. Qh7+ {[%clk 0:15:11]} 29...
Kf6 {[%clk 0:18:38]} 30. Rf1+ {[%clk 0:15:17]} 30... Ke5 {[%clk 0:12:55]} 31.
Qh5+ {[%clk 0:09:41]} 31... Kd4 {[%clk 0:12:52]} 32. Rd1+ {[%clk 0:09:16]} 32...
Kc4 {[%clk 0:13:05]} 33. Qe2+ {[%clk 0:09:17]} 33... Kb4 {[%clk 0:13:19]} 34.
Rd5 {[%clk 0:08:26]} 34... Nc5 {[%clk 0:06:04]} 35. Qd2 {[%clk 0:07:13]} 35...
Kxa5 {[%clk 0:05:34]} 36. b4+ {[%clk 0:05:31]} 36... Kb6 {[%clk 0:05:57]} 37.
Qa2 {[%clk 0:04:34]} 37... Nxe4 {[%clk 0:05:27]} 38. Qa5+ {[%clk 0:04:54]} 38...
Kc6 {[%clk 0:04:52]} 39. Qa4+ {[%clk 0:04:59]} 1/2-1/2

[Variant "Standard"]
[Site "Europe Echecs"]

[Event "Championnat du monde jeunes U10"]
[Date "2024.11.20"]
[White "Zhu, Linxi"]
[Black "Mirzhanov, Arlan"]
[WhiteElo "2100"]
[BlackElo "1721"]
[Round "6.8"]
[Result "1-0"]
[TimeControl "5400+30"]

1. e4 {[%clk 1:30:26]} 1... c5 {[%clk 1:30:41]} 2. Nf3 {[%clk 1:30:52]} 2... d6
{[%clk 1:31:03]} 3. d4 {[%clk 1:31:12]} 3... cxd4 {[%clk 1:31:22]} 4. Nxd4
{[%clk 1:31:36]} 4... Nf6 {[%clk 1:31:15]} 5. Nc3 {[%clk 1:32:00]} 5... a6
{[%clk 1:31:40]} 6. h3 {[%clk 1:32:25]} 6... e5 {[%clk 1:32:06]} 7. Nb3 {[%clk
1:32:50]} 7... Be7 {[%clk 1:29:59]} 8. g4 {[%clk 1:31:46]} 8... h6 {[%clk
1:29:32]} 9. Be3 {[%clk 1:30:42]} 9... Be6 {[%clk 1:27:55]} 10. Qd2 {[%clk
1:27:25]} 10... d5 {[%clk 1:25:07]} 11. exd5 {[%clk 1:27:25]} 11... Nxd5 {[%clk
1:24:58]} 12. Bg2 {[%clk 1:25:18]} 12... Nxe3 {[%clk 1:23:51]} 13. Qxe3 {[%clk
1:25:39]} 13... Qc7 {[%clk 1:23:11]} 14. O-O {[%clk 1:24:27]} 14... Nd7 {[%clk
1:18:37]} 15. Bd5 O-O {[%clk 1:06:54]} 16. Rad1 {[%clk 1:15:01]} 16... Bg5
{[%clk 1:06:11]} 17. Qd3 {[%clk 1:13:41]} 17... Bxd5 {[%clk 0:59:44]} 18. Nxd5
{[%clk 1:13:53]} 18... Qd8 {[%clk 1:00:03]} 19. Qf5 {[%clk 1:11:49]} 19... g6
{[%clk 0:56:37]} 20. Qf3 {[%clk 1:10:25]} 20... Rc8 {[%clk 0:43:26]} 21. c3
{[%clk 1:10:34]} 21... Qe8 {[%clk 0:42:31]} 22. Rfe1 {[%clk 1:06:46]} 22... Qe6
{[%clk 0:38:01]} 23. Qg2 {[%clk 1:02:49]} 23... f5 {[%clk 0:30:39]} 24. f4
{[%clk 0:58:18]} 24... Bh4 {[%clk 0:30:21]} 25. Nd4 {[%clk 0:54:31]} 25... Qd6
{[%clk 0:20:49]} 26. fxe5 {[%clk 0:53:14]} 26... Nxe5 {[%clk 0:20:25]} 27. Rxe5
{[%clk 0:52:33]} 27... Qxe5 {[%clk 0:19:32]} 28. Nf3 {[%clk 0:52:48]} 28... Qg3
{[%clk 0:19:28]} 29. Ne7+ {[%clk 0:51:56]} 29... Kg7 {[%clk 0:17:53]} 30. Nxc8
{[%clk 0:49:49]} 30... Rxc8 {[%clk 0:14:27]} 31. Nxh4 {[%clk 0:50:03]} 31...
Qxh4 {[%clk 0:12:52]} 32. Qxb7+ {[%clk 0:47:18]} 32... Kf6 {[%clk 0:12:32]} 33.
Rd6+ {[%clk 0:47:42]} 33... Ke5 {[%clk 0:11:20]} 34. Qd5+ {[%clk 0:48:08]} 34...
Kf4 {[%clk 0:11:44]} 35. Qd2+ {[%clk 0:48:35]} 35... Ke4 {[%clk 0:11:42]} 36.
Re6+ {[%clk 0:49:02]} 36... Kf3 {[%clk 0:09:56]} 37. Qe3# 1-0

[Variant "Standard"]
[Site "Europe Echecs"]

[Event "Championnat du monde jeunes U10"]
[Date "2024.11.20"]
[White "Zuo, Junyu"]
[Black "Akramov, Khasan"]
[WhiteElo "2120"]
[BlackElo "1835"]
[Round "6.9"]
[Result "1-0"]
[TimeControl "5400+30"]

1. e4 {[%clk 1:30:46]} 1... c5 {[%clk 1:30:57]} 2. Nf3 {[%clk 1:30:38]} 2... Nc6
{[%clk 1:31:25]} 3. d4 {[%clk 1:30:39]} 3... cxd4 {[%clk 1:31:48]} 4. Nxd4
{[%clk 1:30:38]} 4... g6 {[%clk 1:31:21]} 5. c4 {[%clk 1:30:39]} 5... Nf6 {[%clk
1:31:37]} 6. Nc3 {[%clk 1:30:31]} 6... Nxd4 {[%clk 1:32:02]} 7. Qxd4 {[%clk
1:30:29]} 7... d6 {[%clk 1:32:22]} 8. Be3 {[%clk 1:30:43]} 8... Bg7 {[%clk
1:32:39]} 9. f3 {[%clk 1:30:22]} 9... O-O {[%clk 1:33:02]} 10. Qd2 {[%clk
1:30:24]} 10... a6 {[%clk 1:33:08]} 11. Be2 {[%clk 1:27:36]} 11... Be6 {[%clk
1:28:43]} 12. O-O {[%clk 1:24:56]} 12... Qa5 {[%clk 1:27:47]} 13. Rac1 {[%clk
1:15:39]} 13... Rfc8 {[%clk 1:23:04]} 14. b3 {[%clk 0:52:05]} 14... b5 {[%clk
1:15:09]} 15. Nb1 {[%clk 0:43:56]} 15... Qxd2 {[%clk 1:13:05]} 16. Nxd2 {[%clk
0:44:01]} 16... b4 {[%clk 1:12:13]} 17. f4 {[%clk 0:36:51]} 17... Ng4 {[%clk
1:05:42]} 18. Bxg4 {[%clk 0:35:51]} 18... Bxg4 {[%clk 1:05:39]} 19. Nf3 {[%clk
0:24:32]} 19... a5 {[%clk 1:00:54]} 20. h3 {[%clk 0:14:15]} 20... Bxf3 {[%clk
1:00:08]} 21. Rxf3 {[%clk 0:14:43]} 21... Bc3 {[%clk 0:59:42]} 22. a4 {[%clk
0:13:01]} 22... f5 {[%clk 0:55:42]} 23. exf5 {[%clk 0:13:10]} 23... gxf5 {[%clk
0:56:09]} 24. Rd1 {[%clk 0:13:24]} 24... Kf7 {[%clk 0:51:32]} 25. Rd5 {[%clk
0:12:32]} 25... Kf6 {[%clk 0:49:25]} 26. Bf2 {[%clk 0:12:42]} 26... Rc6 {[%clk
0:48:56]} 27. Bh4+ {[%clk 0:12:43]} 27... Kf7 {[%clk 0:48:15]} 28. Rxf5+ {[%clk
0:12:31]} 28... Ke8 {[%clk 0:48:36]} 29. Rh5 {[%clk 0:11:32]} 29... Kd7 {[%clk
0:47:36]} 30. Rxh7 {[%clk 0:11:44]} 30... Re8 {[%clk 0:47:42]} 31. Kf1 {[%clk
0:11:41]} 31... Rc7 {[%clk 0:47:53]} 32. Re3 {[%clk 0:11:55]} 32... Kd8 {[%clk
0:47:59]} 33. Ke2 {[%clk 0:11:37]} 33... Bd4 {[%clk 0:48:08]} 34. Re6 {[%clk
0:11:57]} 34... Bc5 {[%clk 0:48:12]} 35. f5 Rg8 {[%clk 0:47:48]} 36. g4 {[%clk
0:12:35]} 1-0

[Variant "Standard"]
[Site "Europe Echecs"]

[Event "Championnat du monde jeunes U10"]
[Date "2024.11.20"]
[White "Deepak Ambattu, Rithvik"]
[Black "Perez Solanas, Hugo"]
[WhiteElo "2063"]
[BlackElo "1824"]
[Round "6.10"]
[Result "0-1"]
[TimeControl "5400+30"]

1. e4 {[%clk 1:30:56]} 1... c5 {[%clk 1:30:52]} 2. Nf3 {[%clk 1:31:21]} 2... Nc6
{[%clk 1:31:13]} 3. d4 {[%clk 1:31:27]} 3... cxd4 {[%clk 1:31:35]} 4. Nxd4
{[%clk 1:31:52]} 4... g6 {[%clk 1:31:53]} 5. c4 {[%clk 1:32:14]} 5... Nf6 {[%clk
1:31:54]} 6. Nc3 {[%clk 1:32:39]} 6... d6 {[%clk 1:32:07]} 7. f3 {[%clk
1:32:46]} 7... Nxd4 {[%clk 1:32:06]} 8. Qxd4 {[%clk 1:33:13]} 8... Bg7 {[%clk
1:32:09]} 9. Be3 {[%clk 1:33:12]} 9... O-O {[%clk 1:32:23]} 10. Qd2 {[%clk
1:33:39]} 10... a5 {[%clk 1:20:16]} 11. Na4 {[%clk 1:22:23]} 11... Nd7 {[%clk
1:00:36]} 12. Be2 {[%clk 1:05:08]} 12... b6 {[%clk 0:55:09]} 13. O-O {[%clk
1:01:08]} 13... Nc5 {[%clk 0:54:54]} 14. Nc3 {[%clk 1:01:23]} 14... Bb7 {[%clk
0:50:01]} 15. Nd5 {[%clk 0:54:04]} 15... Bxd5 {[%clk 0:48:27]} 16. cxd5 {[%clk
0:53:36]} 16... Qd7 {[%clk 0:46:16]} 17. Rac1 {[%clk 0:37:36]} 17... Rac8 {[%clk
0:43:40]} 18. b3 {[%clk 0:35:29]} 18... Rc7 {[%clk 0:27:18]} 19. Rfd1 {[%clk
0:32:57]} 19... Rfc8 {[%clk 0:26:51]} 20. Bf1 {[%clk 0:30:14]} 20... h5 {[%clk
0:23:18]} 21. Qe2 {[%clk 0:27:51]} 21... Qd8 {[%clk 0:18:20]} 22. Qb5 {[%clk
0:25:42]} 22... Rb7 {[%clk 0:18:04]} 23. Rc2 {[%clk 0:22:49]} 23... h4 {[%clk
0:15:41]} 24. a3 {[%clk 0:20:03]} 24... h3 {[%clk 0:15:39]} 25. g3 {[%clk
0:19:12]} 25... Nd7 {[%clk 0:15:39]} 26. Rxc8 {[%clk 0:14:24]} 26... Qxc8 {[%clk
0:16:06]} 27. Rc1 {[%clk 0:14:38]} 27... Rc7 {[%clk 0:16:07]} 28. Rxc7 {[%clk
0:13:35]} 28... Qxc7 {[%clk 0:16:30]} 29. Qc6 {[%clk 0:13:49]} 29... Qd8 {[%clk
0:16:43]} 30. f4 {[%clk 0:09:19]} 30... Nc5 {[%clk 0:14:33]} 31. b4 {[%clk
0:07:56]} 31... axb4 {[%clk 0:14:37]} 32. axb4 {[%clk 0:08:26]} 32... Nxe4
{[%clk 0:14:31]} 33. Bxb6 {[%clk 0:08:26]} 33... Qf8 {[%clk 0:14:37]} 34. f5
{[%clk 0:05:33]} 34... Ng5 {[%clk 0:12:44]} 35. Be3 {[%clk 0:04:49]} 35... Bd4
{[%clk 0:11:45]} 36. Bxd4 {[%clk 0:04:22]} 36... Nf3+ {[%clk 0:12:08]} 37. Kh1
{[%clk 0:03:26]} 37... Nxd4 {[%clk 0:12:31]} 38. Qb7 {[%clk 0:03:27]} 38... Nxf5
{[%clk 0:09:22]} 39. Bxh3 {[%clk 0:03:34]} 39... Ne3 {[%clk 0:09:30]} 40. Qb6
{[%clk 0:01:43]} 40... Nxd5 {[%clk 0:09:02]} 41. Qb5 {[%clk 0:01:46]} 41... Qa8
{[%clk 0:07:29]} 42. Qa5 {[%clk 0:01:15]} 42... Qc6 {[%clk 0:07:42]} 43. Kg1
{[%clk 0:01:14]} 43... Qc1+ {[%clk 0:08:04]} 44. Bf1 {[%clk 0:01:01]} 44... Qe3+
{[%clk 0:07:21]} 45. Kh1 {[%clk 0:00:44]} 45... Qe4+ {[%clk 0:07:25]} 46. Kg1
{[%clk 0:01:10]} 46... Nxb4 {[%clk 0:07:19]} 47. h4 {[%clk 0:01:20]} 47... Nc2
{[%clk 0:07:14]} 48. Bg2 {[%clk 0:00:46]} 48... Qe3+ {[%clk 0:07:21]} 49. Kh2
{[%clk 0:01:11]} 49... Ne1 {[%clk 0:07:30]} 50. Ba8 {[%clk 0:01:13]} 50... Nd3
{[%clk 0:06:29]} 51. h5 {[%clk 0:00:55]} 51... Qe2+ {[%clk 0:06:41]} 52. Kg1
{[%clk 0:00:57]} 52... Qf2+ {[%clk 0:06:10]} 53. Kh1 {[%clk 0:01:24]} 53... Qxg3
{[%clk 0:06:20]} 54. Bg2 {[%clk 0:01:46]} 54... Nf4 {[%clk 0:05:26]} 55. Bb7
{[%clk 0:02:06]} 55... Qh4+ {[%clk 0:05:28]} 56. Kg1 {[%clk 0:02:30]} 56... Nxh5
{[%clk 0:05:40]} 57. Qd8+ {[%clk 0:02:52]} 57... Kg7 {[%clk 0:06:01]} 0-1

[Variant "Standard"]
[Site "Europe Echecs"]

[Event "Championnat du monde jeunes U10"]
[Date "2024.11.20"]
[White "Xia, Joshua"]
[Black "Dayal, Samar"]
[WhiteElo "2052"]
[BlackElo "1818"]
[Round "6.11"]
[Result "1-0"]
[TimeControl "5400+30"]

1. e4 {[%clk 1:30:58]} 1... c5 {[%clk 1:30:59]} 2. Nf3 {[%clk 1:31:21]} 2... d6
{[%clk 1:31:28]} 3. d4 {[%clk 1:31:46]} 3... cxd4 {[%clk 1:31:55]} 4. Nxd4
{[%clk 1:32:10]} 4... Nf6 {[%clk 1:32:22]} 5. Nc3 {[%clk 1:32:36]} 5... g6
{[%clk 1:32:49]} 6. Be3 {[%clk 1:33:01]} 6... Nc6 {[%clk 1:33:15]} 7. f3 {[%clk
1:33:27]} 7... h5 {[%clk 1:33:39]} 8. Bc4 {[%clk 1:33:53]} 8... Bd7 {[%clk
1:34:06]} 9. h3 {[%clk 1:34:18]} 9... Bg7 {[%clk 1:25:01]} 10. Qd2 {[%clk
1:34:32]} 10... Rc8 {[%clk 1:13:54]} 11. Nxc6 {[%clk 1:25:27]} 11... bxc6 {[%clk
1:11:40]} 12. O-O {[%clk 1:25:29]} 12... O-O {[%clk 1:10:58]} 13. f4 {[%clk
1:25:00]} 13... Qa5 {[%clk 1:10:32]} 14. Rae1 {[%clk 1:22:44]} 14... Rfd8 {[%clk
1:04:50]} 15. e5 {[%clk 1:09:19]} 15... Ne8 {[%clk 0:55:08]} 16. Rf2 {[%clk
0:54:47]} 16... Be6 {[%clk 0:40:52]} 17. Bxe6 {[%clk 0:53:23]} 17... fxe6 {[%clk
0:41:20]} 18. Qd3 {[%clk 0:52:49]} 18... Kh7 {[%clk 0:41:05]} 19. b4 {[%clk
0:36:19]} 19... Qc7 {[%clk 0:31:35]} 20. Ne4 {[%clk 0:33:24]} 20... Bh6 {[%clk
0:31:30]} 21. Qb3 {[%clk 0:30:39]} 21... Ng7 {[%clk 0:29:58]} 22. exd6 {[%clk
0:30:35]} 22... exd6 {[%clk 0:30:24]} 23. Bd4 {[%clk 0:30:53]} 23... Rf8 {[%clk
0:21:03]} 24. Bxg7 {[%clk 0:26:23]} 24... Kxg7 {[%clk 0:21:02]} 25. Qc3+ {[%clk
0:26:29]} 25... Kg8 {[%clk 0:20:14]} 26. Nf6+ {[%clk 0:26:18]} 26... Kf7 {[%clk
0:20:35]} 27. Nh7 {[%clk 0:26:37]} 27... Bg7 {[%clk 0:18:46]} 28. Qe3 {[%clk
0:24:30]} 28... Rfe8 {[%clk 0:18:20]} 29. Ng5+ {[%clk 0:24:39]} 29... Kg8 {[%clk
0:18:47]} 30. Qd3 {[%clk 0:24:56]} 30... Re7 {[%clk 0:16:13]} 31. Qxg6 {[%clk
0:25:01]} 31... Rce8 {[%clk 0:15:48]} 32. f5 {[%clk 0:25:05]} 32... exf5 {[%clk
0:15:23]} 33. Qh7+ {[%clk 0:24:44]} 33... Kf8 {[%clk 0:15:51]} 34. Qxf5+ {[%clk
0:25:04]} 34... Bf6 {[%clk 0:15:51]} 35. Qxf6+ {[%clk 0:25:27]} 35... Kg8 {[%clk
0:16:19]} 36. Qg6+ {[%clk 0:25:51]} 36... Kh8 {[%clk 0:16:45]} 37. Nf7+ {[%clk
0:26:15]} 37... Rxf7 {[%clk 0:17:12]} 38. Rxe8+ {[%clk 0:26:41]} 1-0

[Variant "Standard"]
[Site "Europe Echecs"]

[Event "Championnat du monde jeunes U10"]
[Date "2024.11.20"]
[White "Buklaho, Ignacy"]
[Black "Filipovs, Sergejs"]
[WhiteElo "1822"]
[BlackElo "2012"]
[Round "6.12"]
[Result "1/2-1/2"]
[TimeControl "5400+30"]

1. e4 {[%clk 1:30:51]} 1... e5 {[%clk 1:30:56]} 2. Nf3 {[%clk 1:31:10]} 2... Nc6
{[%clk 1:31:21]} 3. Bc4 {[%clk 1:31:32]} 3... Bc5 {[%clk 1:31:45]} 4. c3 {[%clk
1:31:56]} 4... Nf6 {[%clk 1:32:09]} 5. d3 {[%clk 1:32:21]} 5... O-O {[%clk
1:32:33]} 6. O-O {[%clk 1:32:44]} 6... d5 {[%clk 1:32:58]} 7. exd5 {[%clk
1:32:22]} 7... Nxd5 {[%clk 1:33:24]} 8. Re1 {[%clk 1:32:05]} 8... Bg4 {[%clk
1:33:47]} 9. h3 {[%clk 1:31:51]} 9... Bh5 {[%clk 1:34:12]} 10. Nbd2 {[%clk
1:30:14]} 10... Nb6 {[%clk 1:32:41]} 11. Bb3 {[%clk 1:30:28]} 11... Qxd3 {[%clk
1:28:24]} 12. Nxe5 {[%clk 1:30:14]} 12... Qg3 {[%clk 1:25:51]} 13. Qxh5 {[%clk
1:28:29]} 13... Qxf2+ {[%clk 1:24:49]} 14. Kh2 {[%clk 1:28:37]} 14... Bd6 {[%clk
1:04:09]} 15. Nf3 {[%clk 1:22:07]} 15... Nxe5 {[%clk 1:02:39]} 16. Rxe5 {[%clk
1:21:12]} 16... Nd7 {[%clk 0:55:46]} 17. Bf4 {[%clk 1:15:23]} 17... Nxe5 {[%clk
0:50:24]} 18. Bxe5 {[%clk 1:04:33]} 18... Bxe5+ {[%clk 0:50:33]} 19. Qxe5 {[%clk
0:49:25]} 19... Rae8 {[%clk 0:46:33]} 20. Bxf7+ {[%clk 0:27:20]} 20... Kxf7
{[%clk 0:46:58]} 21. Qd5+ {[%clk 0:27:38]} 21... Kg6 {[%clk 0:47:09]} 22. Qg5+
{[%clk 0:13:01]} 22... Kf7 {[%clk 0:47:29]} 23. Qd5+ {[%clk 0:13:11]} 23... Kg6
{[%clk 0:47:53]} 24. Qg5+ {[%clk 0:06:37]} 24... Kf7 {[%clk 0:48:17]} 1/2-1/2

[Variant "Standard"]
[Site "Europe Echecs"]

[Event "Championnat du monde jeunes U10"]
[Date "2024.11.20"]
[White "Ivanovic, Leonid"]
[Black "Tulegen, Ramazan"]
[WhiteElo "1990"]
[BlackElo "1818"]
[Round "6.13"]
[Result "0-1"]
[TimeControl "5400+30"]

1. e4 {[%clk 1:30:48]} 1... c5 {[%clk 1:30:50]} 2. Nf3 {[%clk 1:30:54]} 2... e6
{[%clk 1:31:10]} 3. d4 {[%clk 1:31:08]} 3... cxd4 {[%clk 1:31:29]} 4. Nxd4
{[%clk 1:31:17]} 4... Nf6 {[%clk 1:31:48]} 5. Nc3 {[%clk 1:31:04]} 5... Nc6
{[%clk 1:32:05]} 6. Ndb5 {[%clk 1:30:45]} 6... Bc5 {[%clk 1:32:18]} 7. Nd6+
{[%clk 1:30:15]} 7... Ke7 {[%clk 1:32:39]} 8. Bf4 {[%clk 1:30:23]} 8... e5
{[%clk 1:33:00]} 9. Nf5+ {[%clk 1:30:40]} 9... Kf8 {[%clk 1:33:15]} 10. Bg5
{[%clk 1:30:59]} 10... d6 {[%clk 1:33:37]} 11. Bc4 {[%clk 1:29:56]} 11... Be6
{[%clk 1:32:51]} 12. Bb3 {[%clk 1:26:44]} 12... h6 {[%clk 1:32:10]} 13. Bxf6
{[%clk 1:15:00]} 13... Qxf6 {[%clk 1:32:28]} 14. Nd5 {[%clk 1:13:15]} 14... Qg5
{[%clk 1:30:07]} 15. Qf3 {[%clk 1:08:16]} 15... Bxf5 {[%clk 1:24:53]} 16. Qxf5
{[%clk 1:04:10]} 16... Qxf5 {[%clk 1:18:27]} 17. exf5 {[%clk 1:04:33]} 17... Ne7
{[%clk 1:15:12]} 18. Nxe7 {[%clk 1:01:02]} 18... Kxe7 {[%clk 1:15:34]} 19. Ke2
{[%clk 0:59:25]} 19... b5 {[%clk 1:15:21]} 20. a3 {[%clk 0:53:55]} 20... Rac8
{[%clk 1:12:39]} 21. f3 {[%clk 0:49:43]} 21... h5 {[%clk 1:09:51]} 22. Kd3
{[%clk 0:45:32]} 22... h4 {[%clk 1:08:45]} 23. Ke4 {[%clk 0:37:30]} 23... Kf6
{[%clk 1:04:23]} 24. Rhf1 {[%clk 0:29:05]} 24... g6 {[%clk 1:02:04]} 25. fxg6
{[%clk 0:13:08]} 25... Kxg6 {[%clk 1:02:13]} 26. Kd3 {[%clk 0:11:32]} 26... f5
{[%clk 1:01:23]} 27. Ke2 {[%clk 0:09:56]} 27... Kf6 {[%clk 1:01:19]} 28. Rad1
{[%clk 0:08:55]} 28... a5 {[%clk 0:59:31]} 29. c3 {[%clk 0:07:25]} 29... Rh7
{[%clk 0:58:42]} 30. Rd2 {[%clk 0:06:19]} 30... Rg7 {[%clk 0:58:53]} 31. Kd3
{[%clk 0:05:50]} 31... Rcc7 {[%clk 0:53:57]} 32. Re1 {[%clk 0:04:21]} 32... Rg6
{[%clk 0:52:44]} 33. Ree2 {[%clk 0:03:23]} 33... a4 {[%clk 0:51:10]} 34. Bd5
{[%clk 0:02:45]} 34... Bg1 {[%clk 0:50:02]} 35. h3 {[%clk 0:02:31]} 35... Bc5
{[%clk 0:50:28]} 36. Re1 {[%clk 0:00:49]} 36... Rg3 {[%clk 0:50:37]} 37. Ree2
{[%clk 0:00:35]} 37... e4+ {[%clk 0:49:32]} 38. Bxe4 fxe4+ {[%clk 0:49:54]} 39.
Rxe4 {[%clk 0:01:01]} 39... Rcg7 {[%clk 0:49:05]} 40. Rxh4 {[%clk 0:00:36]}
40... Rxg2 {[%clk 0:48:54]} 41. c4 {[%clk 0:00:45]} 41... Rxd2+ 42. Kxd2 {[%clk
0:01:14]} 42... b4 {[%clk 0:48:01]} 43. axb4 Bxb4+ {[%clk 0:48:24]} 44. Kc2
{[%clk 0:01:33]} 44... Rg2+ {[%clk 0:48:44]} 45. Kb1 {[%clk 0:01:58]} 45... Bc5
{[%clk 0:48:55]} 46. Re4 {[%clk 0:01:10]} 46... Rg3 {[%clk 0:47:04]} 47. Rf4+
{[%clk 0:00:56]} 47... Ke5 {[%clk 0:46:46]} 48. Rf8 {[%clk 0:01:11]} 48... Rxh3
{[%clk 0:47:03]} 49. Ra8 {[%clk 0:01:30]} 49... a3 50. bxa3 {[%clk 0:01:40]}
50... Rxf3 {[%clk 0:46:29]} 51. Kb2 {[%clk 0:02:00]} 51... Kd4 {[%clk 0:46:41]}
52. a4 {[%clk 0:02:13]} 52... Kxc4 {[%clk 0:46:57]} 53. a5 {[%clk 0:02:42]}
53... Rf2+ {[%clk 0:47:12]} 54. Kc1 {[%clk 0:03:03]} 54... Rf7 {[%clk 0:46:13]}
55. a6 {[%clk 0:03:17]} 55... Ra7 {[%clk 0:46:38]} 56. Rc8 {[%clk 0:03:17]}
56... Rxa6 {[%clk 0:47:01]} 57. Kc2 {[%clk 0:03:40]} 57... d5 {[%clk 0:47:22]}
58. Kb1 {[%clk 0:04:04]} 58... d4 {[%clk 0:47:46]} 59. Kc1 {[%clk 0:04:24]}
59... Ra5 {[%clk 0:48:05]} 60. Kd2 {[%clk 0:04:48]} 60... Ra2+ {[%clk 0:48:08]}
61. Kc1 {[%clk 0:05:10]} 61... d3 {[%clk 0:48:27]} 62. Kd1 {[%clk 0:05:23]}
62... Rh2 {[%clk 0:46:57]} 63. Rc7 {[%clk 0:05:43]} 63... Kd4 {[%clk 0:47:19]}
64. Rc8 {[%clk 0:05:59]} 64... Rh1+ {[%clk 0:47:41]} 0-1

[Variant "Standard"]
[Site "Europe Echecs"]